bitfinex-derivatives/quotes_BTCF0:USTF0_20241008
["timestamp","ask_amount","ask_price","bid_price","bid_amount"]
[1728417182027,0.03626074,62349.0,62348.0,0.080231]
[1728417182223,0.0802,62355.0,62354.0,0.080223]
[1728417182525,0.0802,62355.0,62354.0,0.441023]
[1728417184727,0.3608,62362.0,62361.0,0.080214]
[1728417184935,0.3608,62362.0,62361.0,0.230214]
[1728417185428,0.0786,62363.0,62362.0,0.080213]
[1728417185626,0.1986,62363.0,62362.0,0.080213]
[1728417186632,0.2096,62363.0,62362.0,0.080213]
[1728417187731,0.2196,62363.0,62362.0,0.080213]
[1728417189525,0.39558005,62363.0,62359.0,0.26080229]
[1728417189730,0.45220411,62362.0,62357.0,0.15]
[1728417189933,0.09140411,62361.0,62357.0,0.15]
[1728417190130,0.65678005,62362.0,62359.0,0.080216]
[1728417190131,0.09140411,62360.0,62359.0,0.080216]
[1728417190329,0.09140411,62360.0,62359.0,0.230216]
[1728417190524,0.15951267,62360.0,62359.0,0.230216]
[1728417190726,0.25091678,62360.0,62359.0,0.230216]
[1728417190926,0.09140411,62360.0,62359.0,0.230216]
[1728417191530,0.09840411,62360.0,62359.0,0.230216]
[1728417191938,0.21840411,62360.0,62359.0,0.230216]
[1728417192134,0.25296149,62360.0,62359.0,0.230216]
[1728417192633,0.25996149,62360.0,62359.0,0.230216]
[1728417193226,0.08182856,62360.0,62359.0,0.591016]
[1728417193532,0.0037,62368.0,62367.0,0.080206]
[1728417193737,0.14347659,62370.0,62367.0,0.15]
[1728417194032,0.22177659,62371.0,62370.0,0.080202]
[1728417194334,0.24753384,62371.0,62370.0,0.080202]
[1728417195031,0.15951267,62377.0,62376.0,0.080195]
[1728417195236,0.60481267,62379.0,62373.0,0.15]
[1728417195435,0.70481267,62379.0,62378.0,0.080192]
[1728417195638,0.85899656,62379.0,62378.0,0.080192]
[1728417196044,0.68301651,62379.0,62378.0,0.080192]
[1728417196232,0.60282551,62379.0,62371.0,0.0037]
[1728417196437,0.080196,62376.0,62375.0,0.080194]
[1728417196632,0.3753796,62376.0,62375.0,0.080194]
[1728417196838,0.33612151,62376.0,62375.0,0.080194]
[1728417197333,0.428596,62376.0,62375.0,0.080194]
[1728417198132,0.278596,62376.0,62375.0,0.081194]
[1728417198339,0.278596,62376.0,62375.0,0.082194]
[1728417199240,0.278596,62376.0,62375.0,0.232194]
[1728417199429,0.1984,62376.0,62375.0,0.232194]
[1728417199631,0.0845,62379.0,62378.0,0.080192]
[1728417200831,0.0865,62379.0,62378.0,0.080192]
[1728417201441,0.0885,62379.0,62378.0,0.080192]
[1728417204339,0.004,62379.0,62378.0,0.080192]
[1728417206749,0.444991,62379.0,62378.0,0.080192]
[1728417206951,0.554991,62379.0,62378.0,0.080192]
[1728417209157,0.4748,62379.0,62372.0,0.15]
[1728417209453,0.0802,62373.0,62372.0,0.080198]
[1728417209653,0.1902,62373.0,62372.0,0.080198]
[1728417209843,0.551,62373.0,62372.0,0.080198]
[1728417210456,0.551,62373.0,62372.0,0.084198]
[1728417211049,0.551,62373.0,62372.0,0.088198]
[1728417212253,0.551,62373.0,62372.0,0.238198]
[1728417212456,0.67294352,62373.0,62372.0,0.14118952]
[1728417213057,0.67294352,62373.0,62372.0,0.14418952]
[1728417213659,0.67294355,62373.0,62365.0,0.0037]
[1728417213852,0.67294355,62373.0,62365.0,0.080209]
[1728417213853,0.52071744,62366.0,62365.0,0.080209]
[1728417214046,0.48274355,62366.0,62365.0,0.080209]
[1728417214454,0.65791653,62366.0,62365.0,0.080209]
[1728417215059,0.48374355,62366.0,62365.0,0.083209]
[1728417215664,0.65891653,62366.0,62365.0,0.083209]
[1728417215961,0.65891653,62366.0,62365.0,0.11173789]
[1728417216349,0.71645336,62366.0,62365.0,0.11173789]
[1728417216549,0.71745336,62366.0,62365.0,0.11173789]
[1728417216752,0.65991653,62366.0,62365.0,0.11173789]
[1728417216951,0.48474355,62366.0,62365.0,0.11173789]
[1728417217261,0.48474355,62366.0,62358.0,0.0037]
[1728417217262,1.67579405,62366.0,62358.0,0.0037]
[1728417217455,0.08022,62356.0,62355.0,0.08392]
[1728417217658,0.19022,62356.0,62355.0,0.08022]
[1728417217962,0.080222,62355.0,62354.0,0.08262814]
[1728417218263,0.20060079,62355.0,62354.0,0.08262814]
[1728417218957,0.23037879,62355.0,62354.0,0.08262814]
[1728417219552,0.11,62355.0,62354.0,0.08262814]
[1728417219753,0.190222,62355.0,62354.0,0.08262814]
[1728417220255,0.190222,62355.0,62354.0,0.00240514]
[1728417220463,1.271342,62355.0,62354.0,0.00240514]
[1728417221263,1.272342,62355.0,62354.0,0.00240514]
[1728417222157,1.273342,62355.0,62354.0,0.00240514]
[1728417223469,1.273342,62355.0,62348.0,0.0037]
[1728417223470,0.080229,62349.0,62348.0,0.0037]
[1728417223657,0.08024,62341.0,62340.0,0.08024]
[1728417223965,0.70104,62341.0,62340.0,0.08024]
[1728417224373,0.59104,62341.0,62340.0,0.08024]
[1728417224963,0.59204,62341.0,62340.0,0.08124]
[1728417225164,0.44204,62341.0,62340.0,0.08124]
[1728417225971,0.44304,62341.0,62340.0,0.08424]
[1728417227169,0.3628,62341.0,62340.0,0.23424]
[1728417227372,0.002,62341.0,62340.0,0.23424]
[1728417228566,0.002,62341.0,62340.0,0.59504]
[1728417229468,0.002,62341.0,62340.0,0.23424]
[1728417231476,0.0075,62353.0,62340.0,1.59604]
[1728417231673,0.12,62353.0,62352.0,0.230225]
[1728417232071,0.0075,62364.0,62352.0,0.230225]
[1728417232072,0.0075,62364.0,62353.0,0.080224]
[1728417232268,0.080217,62359.0,62356.0,0.23022]
[1728417232476,0.080218,62358.0,62356.0,0.08022]
[1728417232678,0.441019,62357.0,62356.0,0.08022]
[1728417233269,0.3608,62357.0,62356.0,0.08022]
[1728417234677,0.3638,62357.0,62356.0,0.23022]
[1728417234980,0.006,62357.0,62356.0,0.23022]
[1728417236377,0.3608,62365.0,62364.0,0.08021]
[1728417237673,0.3718,62365.0,62364.0,0.08021]
[1728417237874,0.3838,62365.0,62364.0,0.08021]
[1728417243088,0.0213,62365.0,62364.0,1.16125]
[1728417243583,0.0213,62365.0,62364.0,0.56125]
[1728417243779,0.0213,62365.0,62364.0,0.08021]
[1728417243977,0.0213,62365.0,62364.0,1.16125]
[1728417244188,0.0213,62365.0,62364.0,1.16225]
[1728417244189,0.019,62365.0,62364.0,1.16225]
[1728417244375,0.007,62365.0,62364.0,1.16225]
[1728417244579,0.014,62365.0,62364.0,0.56225]
[1728417244974,0.080201,62371.0,62364.0,1.16425]
[1728417245192,0.080201,62371.0,62370.0,0.080202]
[1728417247282,0.081201,62371.0,62370.0,0.086202]
[1728417247486,0.001,62371.0,62370.0,0.236202]
[1728417248289,0.002,62371.0,62370.0,0.241202]
[1728417248678,0.002,62371.0,62370.0,0.27061908]
[1728417249297,0.002,62371.0,62370.0,0.12061908]
[1728417249996,0.04127982,62371.0,62370.0,0.12061908]
[1728417250185,0.03464254,62371.0,62370.0,0.12061908]
[1728417250380,0.03464254,62371.0,62370.0,1.71241908]
[1728417250892,0.03464254,62371.0,62370.0,0.63141908]
[1728417251490,0.03464254,62371.0,62370.0,0.48141908]
[1728417251688,0.03464254,62371.0,62370.0,0.27061908]
[1728417252797,0.0346766,62371.0,62370.0,0.27061908]
[1728417253191,0.1346766,62371.0,62370.0,0.27061908]
[1728417255195,0.2148776,62371.0,62370.0,0.12061908]
[1728417255387,0.25415726,62371.0,62370.0,0.12061908]
[1728417255587,0.25415726,62371.0,62370.0,0.04315013]
[1728417255588,0.59704329,62371.0,62370.0,0.04315013]
[1728417255784,0.45339175,62371.0,62370.0,0.04315013]
[1728417255990,0.30339175,62371.0,62370.0,0.04315013]
[1728417256794,0.182201,62371.0,62370.0,0.04315013]
[1728417258306,0.332201,62371.0,62370.0,0.04315013]
[1728417259197,0.182201,62371.0,62370.0,0.04315013]
[1728417259999,0.932201,62371.0,62370.0,0.011]
[1728417261091,1.413201,62371.0,62370.0,0.011]
[1728417263295,1.413201,62371.0,62370.0,0.161]
[1728417263296,0.263901,62371.0,62370.0,0.161]
[1728417263505,0.102,62371.0,62370.0,0.241202]
[1728417263802,0.002,62371.0,62370.0,0.241202]
[1728417265097,0.152,62371.0,62370.0,0.091202]
[1728417265293,0.272,62371.0,62370.0,0.091202]
[1728417265498,0.431101,62371.0,62370.0,0.091202]
[1728417265813,0.281101,62371.0,62370.0,0.091202]
[1728417269495,0.2009,62371.0,62370.0,0.091202]
[1728417270410,0.002,62371.0,62370.0,0.241202]
[1728417270597,0.002,62371.0,62370.0,0.602002]
[1728417272512,0.002,62371.0,62370.0,1.083002]
[1728417274003,0.002,62371.0,62370.0,1.683002]
[1728417275708,0.002,62371.0,62370.0,1.083002]
[1728417276515,0.002,62371.0,62370.0,0.602002]
[1728417279814,0.002,62371.0,62370.0,1.683002]
[1728417280205,0.0037,62379.0,62378.0,0.080192]
[1728417280413,0.673983,62385.0,62384.0,0.080184]
[1728417280610,0.783983,62385.0,62384.0,0.080184]
[1728417281216,0.633983,62385.0,62384.0,0.080184]
[1728417281726,0.81268407,62385.0,62381.0,0.00074578]
[1728417281919,0.81268407,62385.0,62378.0,0.080191]
[1728417281920,0.17870107,62384.0,62383.0,0.080186]
[1728417282114,0.28870107,62384.0,62383.0,0.080186]
[1728417283217,0.29570107,62384.0,62383.0,0.081186]
[1728417283919,0.30370107,62384.0,62383.0,0.082186]
[1728417285110,0.19370107,62384.0,62383.0,0.082186]
[1728417285310,0.19369614,62384.0,62383.0,0.082186]
[1728417285613,0.136179,62384.0,62383.0,0.082186]
[1728417286315,0.16788558,62384.0,62383.0,1.162066]
[1728417286616,0.25079033,62384.0,62383.0,1.162066]
[1728417286812,0.25079033,62384.0,62383.0,1.161066]
[1728417286813,0.16288558,62384.0,62383.0,1.161066]
[1728417287024,0.003,62384.0,62383.0,1.161066]
[1728417287218,0.003,62384.0,62383.0,0.080186]
[1728417287425,0.003,62384.0,62383.0,0.561066]
[1728417287930,0.0037,62390.0,62389.0,0.080178]
[1728417288124,0.080172,62394.0,62393.0,0.080173]
[1728417288421,0.190172,62394.0,62393.0,0.080173]
[1728417290321,0.080177,62391.0,62390.0,0.080177]
[1728417290632,0.440977,62391.0,62390.0,0.080177]
[1728417290927,0.080177,62390.0,62387.0,0.08018]
[1728417291119,0.080183,62388.0,62387.0,0.08018]
[1728417291321,0.180183,62388.0,62387.0,0.08018]
[1728417292325,0.540983,62388.0,62387.0,0.08018]
[1728417293120,0.543983,62388.0,62387.0,0.08018]
[1728417293328,0.548983,62388.0,62387.0,0.08018]
[1728417295925,0.548983,62388.0,62380.0,0.0037]
[1728417295926,0.4688,62388.0,62380.0,0.0037]
[1728417296229,0.440989,62381.0,62380.0,0.080189]
[1728417296424,0.540989,62381.0,62380.0,0.080189]
[1728417297223,0.540989,62381.0,62380.0,0.083189]
[1728417298222,0.540989,62381.0,62380.0,0.087189]
[1728417299420,0.690989,62381.0,62380.0,0.003]
[1728417299741,0.080197,62374.0,62373.0,0.083898]
[1728417299925,0.560997,62374.0,62373.0,0.080198]
[1728417300126,0.560997,62374.0,62366.0,0.0037]
[1728417300127,0.080202,62372.0,62371.0,0.0802]
[1728417300435,0.08021,62365.0,62364.0,0.080207]
[1728417300622,0.08021,62365.0,62364.0,0.230207]
[1728417300623,0.56101,62365.0,62364.0,0.230207]
[1728417300821,0.56101,62365.0,62364.0,0.080207]
[1728417301028,0.5920003,62365.0,62364.0,0.080207]
[1728417301238,0.56101,62365.0,62364.0,0.080207]
[1728417301628,0.64821,62365.0,62364.0,0.080207]
[1728417301930,0.71848748,62365.0,62364.0,0.080207]
[1728417302127,0.71848748,62365.0,62360.0,0.0037]
[1728417302435,0.71848748,62365.0,62358.0,0.00240506]
[1728417302436,0.230214,62361.0,62358.0,0.00240506]
[1728417302634,0.441016,62359.0,62358.0,0.00240506]
[1728417302929,0.5112974,62359.0,62358.0,0.00240506]
[1728417303833,0.5112974,62359.0,62358.0,0.08262306]
[1728417304028,0.4310814,62359.0,62358.0,0.08262306]
[1728417304234,0.47200612,62359.0,62358.0,0.08462306]
[1728417304437,0.39179012,62359.0,62358.0,0.08462306]
[1728417304931,0.39179012,62359.0,62358.0,0.08862306]
[1728417305636,0.47300612,62359.0,62358.0,0.08462306]
[1728417305939,0.47400612,62359.0,62358.0,0.09062306]
[1728417306440,0.47400867,62359.0,62358.0,0.09062306]
[1728417307126,0.47400867,62359.0,62358.0,0.01040506]
[1728417307528,0.47400867,62359.0,62358.0,0.09062306]
[1728417309241,0.39379267,62359.0,62358.0,0.09062306]
[1728417309557,0.3628,62359.0,62358.0,0.09062306]
[1728417309840,0.3828,62359.0,62358.0,0.09062306]
[1728417310229,0.3628,62359.0,62358.0,0.09062306]
[1728417312541,0.4628,62359.0,62358.0,0.09062306]
[1728417313242,0.543016,62359.0,62358.0,0.09062306]
[1728417313441,0.4628,62359.0,62358.0,0.09062306]
[1728417315043,0.543016,62359.0,62358.0,0.09062306]
[1728417315942,0.543016,62359.0,62358.0,0.01040506]
[1728417321946,0.543016,62359.0,62358.0,0.09062306]
[1728417322147,0.543016,62359.0,62358.0,0.24062306]
[1728417322348,0.543016,62359.0,62358.0,0.09062306]
[1728417328250,0.543016,62359.0,62358.0,0.01040506]
[1728417328551,0.57400997,62359.0,62358.0,0.01040506]
[1728417328961,0.66300997,62359.0,62358.0,0.01040506]
[1728417329457,0.70230307,62359.0,62358.0,0.01040506]
[1728417330857,0.080224,62353.0,62348.0,0.0037]
[1728417331165,0.080236,62344.0,62343.0,0.02948295]
[1728417331361,0.080236,62344.0,62343.0,0.080237]
[1728417331362,0.350236,62344.0,62343.0,0.080237]
[1728417331751,0.711036,62344.0,62343.0,0.080237]
[1728417331954,0.74203476,62344.0,62343.0,0.32481265]
[1728417332254,0.51179876,62344.0,62343.0,0.32481265]
[1728417332758,0.51279876,62344.0,62343.0,0.32881265]
[1728417332961,0.59303476,62344.0,62343.0,0.32881265]
[1728417333856,0.59403476,62344.0,62343.0,0.24957565]
[1728417334358,0.59403476,62344.0,62343.0,0.32981265]
[1728417334768,0.59403476,62344.0,62343.0,0.42495292]
[1728417335460,0.59403476,62344.0,62343.0,0.52006551]
[1728417335659,0.59403476,62344.0,62343.0,0.63041555]
[1728417336054,0.59403476,62344.0,62343.0,0.72553377]
[1728417336255,0.59403476,62344.0,62343.0,0.83586192]
[1728417338466,0.59403476,62344.0,62343.0,0.75562492]
[1728417341468,0.563036,62344.0,62343.0,0.64529677]
[1728417341867,0.563036,62344.0,62343.0,0.72553377]
[1728417342060,0.4828,62344.0,62343.0,0.87553377]
[1728417342262,0.563036,62344.0,62343.0,0.87553377]
[1728417342457,0.563036,62344.0,62343.0,0.72553377]
[1728417347979,0.563036,62344.0,62343.0,0.78886498]
[1728417349073,0.563036,62344.0,62343.0,0.70862798]
[1728417349276,0.563036,62344.0,62343.0,0.64529677]
[1728417349474,0.653836,62344.0,62343.0,0.64529677]
[1728417350278,0.653836,62344.0,62342.0,0.2535462]
[1728417350279,1.735036,62344.0,62342.0,0.2535462]
[1728417350480,0.561437,62343.0,62342.0,0.1140462]
[1728417350781,0.661437,62343.0,62342.0,0.1140462]
[1728417350979,1.261437,62343.0,62342.0,0.1140462]
[1728417351279,1.261437,62343.0,62342.0,0.1160462]
[1728417352080,1.262437,62343.0,62342.0,0.1160462]
[1728417353179,1.263437,62343.0,62342.0,0.1160462]
[1728417354775,0.080238,62342.0,62341.0,0.09506262]
[1728417354976,0.831438,62342.0,62341.0,0.09506262]
[1728417355179,1.431438,62342.0,62341.0,0.09506262]
[1728417356082,1.432438,62342.0,62341.0,0.09506262]
[1728417356885,0.833438,62342.0,62341.0,0.09506262]
[1728417357084,1.433438,62342.0,62341.0,0.09506262]
[1728417357385,1.46306015,62342.0,62341.0,0.09506262]
[1728417358980,0.86306015,62342.0,62341.0,0.09506262]
[1728417359578,1.46306015,62342.0,62341.0,0.09506262]
[1728417361286,0.23186015,62342.0,62341.0,0.09506262]
[1728417361485,0.38186015,62342.0,62341.0,0.09506262]
[1728417361786,0.38186015,62342.0,62338.0,0.080243]
[1728417361787,0.080242,62339.0,62338.0,0.080243]
[1728417361988,0.080242,62339.0,62336.0,0.170243]
[1728417361989,0.080245,62337.0,62336.0,0.170243]
[1728417362286,0.200245,62337.0,62336.0,0.170243]
[1728417363481,0.12,62337.0,62336.0,0.170243]
[1728417363679,0.200245,62337.0,62336.0,0.170243]
[1728417364487,0.201245,62337.0,62336.0,0.170243]
[1728417364789,0.202245,62337.0,62336.0,0.170243]
[1728417366184,0.122,62337.0,62336.0,0.170243]
[1728417366384,0.002,62337.0,62336.0,0.170243]
[1728417369095,0.3618,62339.0,62338.0,0.080243]
[1728417370693,0.3618,62339.0,62338.0,0.081243]
[1728417371792,0.3628,62339.0,62338.0,0.081243]
[1728417373994,0.002,62339.0,62338.0,0.081243]
[1728417376399,0.002,62339.0,62338.0,1.162483]
[1728417376591,0.0075,62348.0,62347.0,0.080232]
[1728417376893,0.3608,62357.0,62356.0,0.08022]
[1728417378802,0.2218,62357.0,62356.0,0.08022]
[1728417378988,0.2258,62357.0,62356.0,0.08022]
[1728417379189,0.004,62357.0,62356.0,0.08022]
[1728417380799,0.007,62357.0,62356.0,0.08022]
[1728417381300,0.007,62357.0,62356.0,0.10859757]
[1728417386002,0.0932,62369.0,62356.0,1.10949757]
[1728417386202,0.120204,62369.0,62368.0,0.080204]
[1728417386401,0.3608,62370.0,62368.0,0.15]
[1728417386602,0.3608,62370.0,62369.0,0.080204]
[1728417389306,0.3698,62370.0,62369.0,0.080204]
[1728417389696,0.3658,62370.0,62369.0,0.081204]
[1728417390301,0.005,62370.0,62369.0,0.081204]
[1728417390504,0.005,62370.0,62369.0,0.080204]
[1728417390905,0.003,62370.0,62369.0,0.080204]
[1728417391108,0.004,62370.0,62369.0,0.087204]
[1728417391503,0.002,62370.0,62369.0,0.090204]
[1728417401009,0.084,62376.0,62375.0,0.080196]
[1728417401404,0.164195,62376.0,62375.0,0.080196]
[1728417402417,0.164195,62376.0,62375.0,0.081196]
[1728417402617,0.084,62376.0,62375.0,0.081196]
[1728417405720,0.084,62376.0,62375.0,0.11045591]
[1728417409925,0.15,62401.0,62375.0,0.11045591]
[1728417410227,0.0037,62385.0,62383.0,0.230186]
[1728417410431,0.0903,62386.0,62383.0,0.230186]
[1728417411723,0.41466955,62384.0,62383.0,0.230186]
[1728417411918,0.65471917,62384.0,62383.0,0.14993766]
[1728417412124,0.65471917,62384.0,62383.0,0.23012366]
[1728417412322,0.51072277,62384.0,62383.0,0.23012366]
[1728417412519,0.45685322,62384.0,62383.0,0.23012366]
[1728417413429,0.46485322,62384.0,62383.0,0.23112366]
[1728417414433,0.016,62384.0,62383.0,0.25950287]
[1728417416646,0.016,62384.0,62383.0,0.20956521]
[1728417423346,0.206184,62384.0,62383.0,0.081186]
[1728417424753,0.566984,62384.0,62383.0,0.081186]
[1728417426452,0.566984,62384.0,62383.0,0.181186]
[1728417429153,0.566984,62384.0,62383.0,0.081186]
[1728417429649,0.70686662,62384.0,62383.0,0.04155263]
[1728417429859,0.7069486,62384.0,62383.0,0.04155263]
[1728417430253,0.85114944,62384.0,62383.0,0.04155263]
[1728417431141,0.76922604,62384.0,62383.0,0.001]
[1728417431949,0.76922604,62384.0,62383.0,0.081186]
[1728417432148,0.40842604,62384.0,62383.0,0.081186]
[1728417432353,0.50842604,62384.0,62383.0,0.081186]
[1728417432740,0.40842604,62384.0,62383.0,0.081186]
[1728417433545,0.50842604,62384.0,62383.0,0.081186]
[1728417433852,0.50620477,62384.0,62383.0,0.081186]
[1728417434953,0.50660402,62384.0,62383.0,0.081186]
[1728417435347,0.50660402,62384.0,62383.0,0.001]
[1728417435960,0.58294427,62384.0,62383.0,0.181186]
[1728417436358,0.52066683,62384.0,62383.0,0.181186]
[1728417436550,0.34432658,62384.0,62383.0,0.181186]
[1728417436858,0.34432658,62384.0,62383.0,0.081186]
[1728417437357,0.406357,62384.0,62383.0,0.081186]
[1728417437559,0.206184,62384.0,62383.0,0.081186]
[1728417437951,0.306184,62384.0,62383.0,0.001]
[1728417438155,1.387064,62384.0,62383.0,0.001]
[1728417438552,1.4264477,62384.0,62383.0,0.001]
[1728417439762,1.387064,62384.0,62383.0,0.001]
[1728417440263,1.387064,62384.0,62377.0,0.080193]
[1728417440461,0.180192,62378.0,62377.0,0.080193]
[1728417440761,0.300192,62378.0,62377.0,0.080193]
[1728417441171,0.660992,62378.0,62377.0,0.080193]
[1728417441363,0.0802,62374.0,62370.0,0.0037]
[1728417441661,0.080205,62368.0,62367.0,0.083906]
[1728417441850,0.290205,62368.0,62367.0,0.080206]
[1728417443369,0.31879592,62368.0,62367.0,0.080206]
[1728417443863,0.31979592,62368.0,62367.0,0.080206]
[1728417444067,0.111,62368.0,62367.0,0.080206]
[1728417444254,0.111,62368.0,62367.0,0.180206]
[1728417444563,0.002,62368.0,62367.0,0.180206]
[1728417445066,0.04109047,62368.0,62367.0,0.180206]
[1728417445860,0.04109047,62368.0,62367.0,0.080206]
[1728417446058,0.16109047,62368.0,62367.0,0.080206]
[1728417446561,0.206414,62368.0,62367.0,0.080206]
[1728417446757,0.205414,62368.0,62367.0,0.080206]
[1728417447064,0.284619,62368.0,62367.0,0.085206]
[1728417447267,0.284619,62368.0,62367.0,0.04486997]
[1728417447565,0.284619,62368.0,62367.0,0.087206]
[1728417447767,0.284619,62368.0,62367.0,0.088206]
[1728417448264,0.284619,62368.0,62367.0,0.083206]
[1728417448467,0.284619,62368.0,62367.0,0.085206]
[1728417449760,0.284619,62368.0,62367.0,0.083206]
[1728417450071,0.284619,62368.0,62367.0,0.082206]
[1728417450266,0.284619,62368.0,62367.0,0.002]
[1728417450461,0.284619,62368.0,62367.0,0.001]
[1728417451371,0.08021,62367.0,62366.0,0.080207]
[1728417451569,0.264624,62367.0,62366.0,0.080207]
[1728417452669,0.1,62367.0,62366.0,0.080207]
[1728417452860,0.180206,62367.0,62366.0,0.080207]
[1728417454071,0.1,62367.0,62366.0,0.080207]
[1728417454368,0.180206,62367.0,62366.0,0.080207]
[1728417454674,0.182206,62367.0,62366.0,0.080207]
[1728417455270,0.102,62367.0,62366.0,0.080207]
[1728417455670,0.182206,62367.0,62366.0,0.080207]
[1728417457976,0.102,62367.0,62366.0,0.080207]
[1728417458178,0.102,62367.0,62366.0,0.230207]
[1728417458574,0.102,62367.0,62366.0,0.27763523]
[1728417459076,0.102,62367.0,62366.0,0.12763523]
[1728417459274,0.332206,62367.0,62366.0,0.12763523]
[1728417459472,0.332206,62367.0,62366.0,0.080207]
[1728417459676,0.332206,62367.0,62366.0,0.04284123]
[1728417459677,0.46552789,62367.0,62366.0,0.04284123]
[1728417460276,0.6078199,62367.0,62366.0,0.04484123]
[1728417460980,0.55721498,62367.0,62366.0,0.04484123]
[1728417461170,0.41292297,62367.0,62366.0,0.04484123]
[1728417461480,0.41255167,62367.0,62366.0,0.04484123]
[1728417462279,0.18246156,62367.0,62366.0,0.04484123]
[1728417462486,0.0037,62374.0,62373.0,0.080198]
[1728417462789,0.0037,62382.0,62378.0,0.080192]
[1728417462968,0.1763569,62393.0,62378.0,0.080192]
[1728417462969,0.14429201,62387.0,62382.0,0.15]
[1728417463169,0.14429201,62389.0,62388.0,0.080179]
[1728417463385,0.21597447,62389.0,62388.0,0.080179]
[1728417463577,0.36026648,62389.0,62388.0,0.080179]
[1728417464581,0.37326648,62389.0,62388.0,0.080179]
[1728417464778,0.38726648,62389.0,62388.0,0.080179]
[1728417464971,0.24297447,62389.0,62388.0,0.080179]
[1728417465170,0.38726648,62389.0,62388.0,0.080179]
[1728417465371,0.19187497,62389.0,62388.0,0.080179]
[1728417465573,0.19187497,62389.0,62384.0,0.0887]
[1728417465781,0.12505497,62388.0,62384.0,0.168883]
[1728417465977,0.04487497,62387.0,62384.0,0.168883]
[1728417466177,0.04487497,62386.0,62385.0,0.080183]
[1728417467677,0.04487497,62386.0,62384.0,0.0897]
[1728417467678,0.080181,62387.0,62384.0,0.0887]
[1728417467877,0.080181,62387.0,62385.0,0.081183]
[1728417467878,0.021,62386.0,62385.0,0.081183]
[1728417468581,0.021,62386.0,62385.0,0.231183]
[1728417468582,0.131,62386.0,62385.0,0.231183]
[1728417468776,0.021,62386.0,62385.0,0.231183]
[1728417469479,0.011,62386.0,62385.0,0.231183]
[1728417469980,0.018,62387.0,62386.0,0.080182]
[1728417470173,0.119,62387.0,62386.0,0.080182]
[1728417470371,0.11,62387.0,62386.0,0.080182]
[1728417471185,0.122,62387.0,62386.0,0.081182]
[1728417473269,0.133,62387.0,62386.0,0.081182]
[1728417475673,0.21318,62387.0,62386.0,0.081182]
[1728417478182,0.21318,62387.0,62386.0,0.001]
[1728417479187,0.36318,62387.0,62386.0,0.001]
[1728417479384,0.36318,62387.0,62379.0,0.0037]
[1728417479385,0.283,62387.0,62379.0,0.0037]
[1728417479691,0.080192,62378.0,62377.0,0.080193]
[1728417479880,0.1,62378.0,62377.0,0.080193]
[1728417480083,0.0037,62386.0,62377.0,0.230193]
[1728417480283,0.11,62386.0,62385.0,0.080183]
[1728417481380,0.112,62386.0,62385.0,0.080183]
[1728417482789,0.39650851,62386.0,62382.0,0.00124]
[1728417482995,0.21219014,62385.0,62384.0,0.080184]
[1728417483203,0.4725146,62385.0,62384.0,0.080184]
[1728417483490,0.4725146,62385.0,62381.0,0.080187]
[1728417483491,0.080188,62382.0,62381.0,0.080187]
[1728417483682,0.3339768,62382.0,62381.0,0.080187]
[1728417483879,0.27208864,62382.0,62381.0,0.080187]
[1728417484792,0.63888864,62382.0,62381.0,0.080187]
[1728417485594,0.68811704,62382.0,62381.0,0.080187]
[1728417486591,0.68811704,62382.0,62374.0,0.032162]
[1728417486790,0.080192,62379.0,62378.0,0.080191]
[1728417486994,0.200192,62379.0,62378.0,0.080191]
[1728417487195,0.47519217,62379.0,62378.0,0.080191]
[1728417487591,0.080196,62376.0,62375.0,0.080195]
[1728417487798,0.190196,62376.0,62375.0,0.080195]
[1728417488088,0.32132594,62376.0,62375.0,0.080195]
[1728417488498,0.48122681,62376.0,62375.0,0.080195]
[1728417488697,0.68212594,62376.0,62375.0,0.080195]
[1728417489293,0.84202681,62376.0,62375.0,0.080195]
[1728417489796,0.550996,62376.0,62375.0,0.080195]
[1728417491697,0.080198,62373.0,62372.0,0.12762723]
[1728417491897,0.190198,62373.0,62372.0,0.12762723]
[1728417492394,0.190198,62373.0,62372.0,0.080199]
[1728417492991,0.190198,62373.0,62372.0,0.086199]
[1728417493484,0.190198,62373.0,62372.0,0.083199]
[1728417493793,0.190198,62373.0,62372.0,0.086199]
[1728417494397,0.190198,62373.0,62372.0,0.13359823]
[1728417494698,0.190198,62373.0,62372.0,0.086199]
[1728417495097,0.11,62373.0,62372.0,0.086199]
[1728417495505,0.0037,62384.0,62383.0,0.080186]
[1728417495700,0.1,62384.0,62383.0,0.080186]
[1728417496093,0.08018,62388.0,62387.0,0.08018]
[1728417496293,0.19018,62388.0,62387.0,0.08018]
[1728417496593,0.11,62388.0,62387.0,0.08018]
[1728417496793,0.11,62388.0,62387.0,0.12754429]
[1728417497004,0.11,62388.0,62387.0,0.08018]
[1728417497296,0.123,62388.0,62387.0,0.08018]
[1728417497503,0.135,62388.0,62387.0,0.08018]
[1728417497799,0.26201202,62388.0,62384.0,0.24024117]
[1728417498001,0.27109339,62387.0,62386.0,0.080182]
[1728417498305,0.38109339,62387.0,62386.0,0.080182]
[1728417499393,0.23701202,62387.0,62386.0,0.080182]
[1728417499594,0.38109339,62387.0,62386.0,0.080182]
[1728417499796,0.39309339,62387.0,62386.0,0.080182]
[1728417499996,0.48427339,62387.0,62386.0,0.080182]
[1728417500296,0.40409339,62387.0,62386.0,0.080182]
[1728417500700,0.34019202,62387.0,62386.0,0.080182]
[1728417500897,0.40408743,62387.0,62386.0,0.080182]
[1728417501090,0.48426743,62387.0,62386.0,0.080182]
[1728417503187,0.34019202,62387.0,62386.0,0.080182]
[1728417503801,0.33861616,62387.0,62386.0,0.080182]
[1728417504494,0.48861616,62387.0,62386.0,0.080182]
[1728417504999,0.080188,62384.0,62383.0,0.080185]
[1728417505193,0.080188,62384.0,62380.0,0.0037]